Workbook

Sheet Planilha1
C1: Ministério da Integração e do Desenvolvimento Regional -MIDR
C2: Companhia de Desenvolvimento dos Vales do São Francisco e do Parnaíba
C3: Área de Administração e Tecnologia
D4: ANEXO VII
B5: RELAÇÃO DE SINISTROS DE 2021 A JANEIRO DE 2026
A7: SINISTROS MAPFRE 2021 (JANEIRO A JUNHO)
A9: Item | B9: Mês do Sinistro | C9: Data da Ocorrência | D9: Situação Morte/Invalidez | E9: Sinistro Pendentes | F9: Sinistro Pagos | G9: Total | H9: Status
A10: 1 | B10: JANEIRO | C10: 2021-01-01 | D10: Morte Natural | F10: 230137.6 | G10: =E10+F10 -> 230137.6 | H10: Processo concluído
D11: Morte Natural (Assistência/Auxílio Funeral) | F11: 6575.36 | G11: =E11+F11 -> 6575.36
A12: 2 | B12: JANEIRO | C12: 2021-01-02 | D12: Morte Natural | F12: 106313.9 | G12: =E12+F12 -> 106313.9 | H12: Processo concluído
D13: Morte Natural (Assistência/Auxílio Funeral) | F13: 6575.36 | G13: =E13+F13 -> 6575.36 | H13: Processo concluído
A14: 3 | B14: FEVEREIRO | C14: 2021-02-15 | D14: Morte Natural | F14: 230137.6 | G14: =E14+F14 -> 230137.6 | H14: Processo concluído
D15: Morte Natural (Assistência/Auxílio Funeral) | F15: 0 | G15: 0 | H15: Processo concluído
A16: 4 | B16: MARÇO | C16: 2021-03-14 | D16: Morte Natural | F16: 230137.6 | G16: =E16+F16 -> 230137.6 | H16: Processo concluído
D17: Morte Natural (Assistência/Auxílio Funeral) | F17: 6575.6 | G17: 6575.6 | H17: Processo concluído
A18: 5 | B18: ABRIL | C18: 2021-04-17 | D18: Morte Acidental | F18: 460275.2 | G18: 460275.2 | H18: Processo concluído
D19: Morte Acidental (Assistência/Auxílio Funeral) | F19: 4800 | G19: 4800 | H19: Processo concluído
A20: 6 | B20: MAIO | C20: 2021-05-08 | D20: Morte Natural | F20: 230137.6 | G20: 230137.6 | H20: Processo concluído
D21: Morte Natural (Assistência/Auxílio Funeral) | F21: 0 | G21: 0 | H21: Não se aplica
A22: 7 | B22: MAIO | C22: 2021-05-31 | D22: Morte Natural | F22: 230137.6 | G22: 230137.6 | H22: Processo concluído
D23: Morte Natural (Assistência/Auxílio Funeral) | F23: 0 | G23: 0 | H23: Não se aplica
A24: 8 | B24: JULHO | C24: 2020-05-01 | D24: Invalidez Funcional Permanente por Doença (Requerido em 02/07/2021) | F24: 0 | G24: 0 | H24: Processo Indeferido
A26: 9 | B26: JULHO | C26: 2021-07-23 | D26: Invalidez Funcional Permanente por Doença | F26: 230137.6 | G26: =E26+F26 -> 230137.6 | H26: Processo concluído
H27: Processo concluído
E28: =SUM(E10:E13) -> 0 | F28: =SUM(F10:F27) -> 1971941.02 | G28: =SUM(G10:G27) -> 1971941.02
A32: SINISTROS GENTE 2021 (JULHO A DEZEMBRO)
A34: Item | B34: Mês do Sinistro | C34: Data da Ocorrência | D34: Situação Morte/Invalidez | E34: Sinistro Pendentes | F34: Sinistro Pagos | G34: Total | H34: Status
A35: 1 | B35: JULHO | C35: 2021-07-17 | D35: Morte Natural | F35: 230137.6 | G35: =E35+F35 -> 230137.6 | H35: Processo concluído
D36: Morte Natural (Assistência/Auxílio Funeral) | F36: 6600 | G36: =E36+F36 -> 6600
A37: 2 | B37: AGOSTO | C37: 2021-08-30 | D37: Morte Natural | F37: 230137.6 | G37: 230137.6 | H37: Processo concluído
D38: Morte Natural (Assistência/Auxílio Funeral) | F38: 3969.32 | G38: 3969.32
A39: 3 | B39: AGOSTO | C39: 2021-08-21 | D39: Morte Natural | F39: 106313.9 | G39: 106313.9 | H39: Processo concluído
D40: Morte Natural (Assistência/Auxílio Funeral) | F40: 6600 | G40: 6600
A41: 4 | B41: AGOSTO | C41: 2021-08-27 | D41: Morte Natural | F41: 230137.6 | G41: 230137.6 | H41: Processo concluído
D42: Morte Natural (Assistência/Auxílio Funeral) | F42: 6600 | G42: 6600
A43: 5 | B43: SETEMBRO | C43: 2021-09-20 | D43: Morte Natural | F43: 106313.9 | G43: 106313.9 | H43: Processo concluído
D44: Morte Natural (Assistência/Auxílio Funeral) | F44: 1754.62 | G44: 1754.62
A45: 6 | B45: NOVEMBRO | C45: 2021-11-18 | D45: Morte Natural | F45: 230137.6 | G45: 230137.6 | H45: Processo concluído
D46: Morte Natural (Assistência/Auxílio Funeral) | F46: 3915 | G46: 3915
A47: 7 | B47: DEZEMBRO | C47: 2021-12-03 | D47: Morte Natural | F47: 106313.9 | G47: 106313.9 | H47: Processo concluído
D48: Morte Natural (Assistência/Auxílio Funeral) | F48: 0 | G48: 0
A49: 8 | B49: DEZEMBRO | C49: 2021-12-29 | D49: Morte Natural | F49: 230137.6 | G49: 230137.6 | H49: Processo concluído
D50: Morte Natural (Assistência/Auxílio Funeral) | F50: 0 | G50: 0
A51: 9 | B51: DEZEMBRO | C51: 2021-12-13 | D51: Morte Natural | F51: 106313.9 | G51: 106313.9 | H51: Processo concluído
D52: Morte Natural (Assistência/Auxílio Funeral) | F52: 6600 | G52: 6600
E53: =SUM(E35:E38) -> 0 | F53: =SUM(F35:F52) -> 1611982.54 | G53: =SUM(G35:G52) -> 1611982.54
A57: SINISTROS GENTE 2022 (JANEIRO A DEZEMBRO)
A59: Quantidade | B59: Mês do Sinistro | C59: Data da Ocorrência | D59: Situação Morte/Invalidez | E59: Sinistro Pendentes | F59: Sinistro Pagos | G59: Total | H59: Status
A60: 1 | B60: JANEIRO | C60: 2022-01-08 | D60: Morte Natural | F60: 230137.6 | G60: =E60+F60 -> 230137.6 | H60: Processo concluído
D61: Morte Natural (Assistência/Auxílio Funeral) | F61: 6600 | G61: 6600
A62: 2 | B62: JANEIRO | C62: 2022-01-21 | D62: Morte Natural | F62: 106313.9 | G62: 106313.9 | H62: Processo concluído
D63: Morte Natural (Assistência/Auxílio Funeral) | F63: 6050 | G63: 6050
A64: 3 | B64: JANEIRO | C64: 2022-01-29 | D64: Morte Natural | F64: 106313.9 | G64: 106313.9 | H64: Processo concluído
D65: Morte Natural (Assistência/Auxílio Funeral) | F65: 5000 | G65: 5000
A66: 4 | B66: FEVEREIRO | C66: 2022-02-22 | D66: Morte Natural | F66: 230137.6 | G66: 230137.6 | H66: Processo concluído
D67: Morte Natural (Assistência/Auxílio Funeral) | F67: 4780 | G67: 4780
A68: 5 | B68: FEVEREIRO | C68: 2022-02-18 | D68: Morte Acidental | F68: 212627.8 | G68: 212627.8 | H68: Processo concluído
D69: Morte Acidental (Assistência/Auxílio Funeral) | F69: 6000 | G69: 6000
A70: 6 | B70: FEVEREIRO | C70: 2022-02-23 | D70: Invalidez Funcional Permanente por Doença | F70: 230137.6 | G70: 230137.6 | H70: Processo concluído
A72: 7 | B72: MARÇO | C72: 2022-03-06 | D72: Morte Natural | F72: 230137.6 | G72: =E72+F72 -> 230137.6 | H72: Processo concluído
D73: Morte Natural (Assistência/Auxílio Funeral) | F73: 5150 | G73: 5150
A74: 8 | B74: MARÇO | C74: 2022-03-22 | D74: Morte Natural | F74: 106313.9 | G74: 106313.9 | H74: Processo concluído
D75: Morte Natural (Assistência/Auxílio Funeral) | F75: 3950 | G75: 3950
A76: 9 | B76: ABRIL | C76: 2022-04-28 | D76: Morte Natural | F76: 230137.6 | G76: 230137.6 | H76: Processo concluído
D77: Morte Natural (Assistência/Auxílio Funeral) | F77: 6600 | G77: 6600
A78: 10 | B78: MAIO | C78: 2022-05-13 | D78: Morte Natural | F78: 230137.6 | G78: 230137.6 | H78: Processo concluído
D79: Morte Natural (Assistência/Auxílio Funeral) | F79: 6500 | G79: 6500
A80: 11 | B80: MAIO | C80: 2022-05-31 | D80: Invalidez Funcional Permanente por Doença | F80: 106313.9 | G80: 106313.9 | H80: Processo concluído
A82: 12 | B82: JULHO | C82: 2022-07-25 | D82: Morte Natural | F82: 246891.4 | G82: =E82+F82 -> 246891.4 | H82: Processo concluído
D83: Morte Natural (Assistência/Auxílio Funeral) | F83: 7054.04 | G83: 7054.04
A84: 13 | B84: AGOSTO | C84: 2022-08-21 | D84: Morte Natural | F84: 246891.4 | G84: 246891.4 | H84: Processo concluído
D85: Morte Natural (Assistência/Auxílio Funeral) | F85: 0 | G85: =E85+F85 -> 0
A86: 14 | B86: NOVEMBRO | C86: 2022-11-25 | D86: Invalidez Funcional Permanente por Doença | F86: 165000 | G86: =E86+F86 -> 165000 | H86: Processo concluído
A88: 15 | B88: DEZEMBRO | C88: 2022-12-11 | D88: Morte Natural | F88: 114053.8 | G88: 114053.8 | H88: Processo concluído
D89: Morte Natural (Assistência/Auxílio Funeral) | F89: 0 | G89: 0
E90: =SUM(E70:E73) -> 0 | F90: =SUM(F60:F89) -> 2849229.64 | G90: =SUM(G60:G89) -> 2849229.64
A94: SINISTROS GENTE 2023 (JANEIRO A DEZEMBRO)
A96: Quantidade | B96: Mês do Sinistro | C96: Data da Ocorrência | D96: Situação Morte/Invalidez | E96: Sinistro Pendentes | F96: Sinistro Pagos | G96: Total | H96: Status
A97: 1 | B97: JANEIRO | C97: 2023-01-08 | D97: Morte Natural | F97: 246891.4 | G97: =E97+F97 -> 246891.4 | H97: Processo concluído
D98: Morte Natural (Assistência/Auxílio Funeral) | F98: 7054.04 | G98: =E98+F98 -> 7054.04
A99: 2 | B99: JANEIRO | C99: 2023-01-31 | D99: Morte Natural | F99: 246891.4 | G99: =E99+F99 -> 246891.4 | H99: Processo concluído
D100: Morte Natural (Assistência/Auxílio Funeral) | F100: 7054.04 | G100: =E100+F100 -> 7054.04
A101: 3 | B101: MARÇO | C101: 2023-03-12 | D101: Morte Natural | F101: 114053.8 | G101: =E101+F101 -> 114053.8 | H101: Processo concluído
D102: Morte Natural (Assistência/Auxílio Funeral) | F102: 0 | G102: Não requereu
A103: 4 | B103: MARÇO | C103: 2023-03-13 | D103: Morte Natural | F103: 246891.4 | G103: =E103+F103 -> 246891.4 | H103: Processo concluído
D104: Morte Natural (Assistência/Auxílio Funeral) | F104: 6200 | G104: 6200
A105: 5 | B105: ABRIL | C105: 2023-04-15 | D105: Morte Natural | F105: 246891.4 | G105: 246891.4 | H105: Processo concluído
D106: Morte Natural (Assistência/Auxílio Funeral) | F106: 5020 | G106: 5020
A107: 6 | B107: MAIO | C107: 2023-05-27 | D107: Morte Natural | F107: 246891.4 | G107: 246891.4 | H107: Processo concluído
D108: Morte Natural (Assistência/Auxílio Funeral) | F108: 5500 | G108: 5500
A109: 7 | B109: AGOSTO | C109: 2023-08-18 | D109: Morte Natural | F109: 246891.4 | G109: 246891.4 | H109: Processo concluído
D110: Morte Natural (Assistência/Auxílio Funeral) | F110: 3800 | G110: 3800
A111: 8 | B111: AGOSTO | C111: 2023-08-06 | D111: Morte Natural | F111: 246891.4 | G111: 246891.4 | H111: Processo concluído
D112: Morte Natural (Assistência/Auxílio Funeral) | F112: 4486.73 | G112: 4486.73
A113: 9 | B113: AGOSTO | C113: 2023-08-27 | D113: Morte Natural | F113: 246891.4 | G113: 246891.4 | H113: Processo concluído
D114: Morte Natural (Assistência/Auxílio Funeral) | F114: 4500 | G114: 4500
A115: 10 | B115: AGOSTO | C115: 2023-08-28 | D115: Morte Natural | F115: 114053.8 | G115: 114053.8 | H115: Processo concluído
D116: Morte Natural (Assistência/Auxílio Funeral) | F116: 1200 | G116: =E116+F116 -> 1200
A117: 11 | B117: OUTUBRO | C117: 2023-10-06 | D117: Invalidez Funcional Permanente por Doença | F117: 246891.4 | G117: =E117+F117 -> 246891.4 | H117: Processo concluído
A119: 12 | B119: OUTUBRO | C119: 2023-10-07 | D119: Morte Natural | F119: 246891.4 | G119: =E119+F119 -> 246891.4 | H119: Processo concluído
D120: Morte Natural (Assistência/Auxílio Funeral) | F120: 4800 | G120: =E120+F120 -> 4800
A121: 13 | B121: OUTUBRO | C121: 2023-10-17 | D121: Invalidez Funcional Permanente por Doença | F121: 0 | G121: 0 | H121: Processo indeferido
A123: 14 | B123: OUTUBRO | C123: 2023-10-26 | D123: Morte Natural | F123: 114053.8 | G123: =E123+F123 -> 114053.8 | H123: Processo concluído
D124: Morte Natural (Assistência/Auxílio Funeral) | F124: 2300 | G124: 2300
A125: 15 | B125: NOVEMBRO | C125: 2023-11-10 | D125: Morte Natural | F125: 246891.4 | G125: 246891.4 | H125: Processo pendente
D126: Morte Natural (Assistência/Auxílio Funeral) | F126: 3000 | G126: 3000
A127: 16 | B127: DEZEMBRO | C127: 2023-12-09 | D127: Morte Natural | F127: 246891.4 | G127: 246891.4 | H127: Processo concluído
D128: Morte Natural (Assistência/Auxílio Funeral) | F128: 4400 | G128: 4400
A129: 17 | B129: DEZEMBRO | C129: 2023-12-11 | D129: Morte Natural | F129: 246891.4 | G129: 246891.4 | H129: Processo concluído
D130: Morte Natural (Assistência/Auxílio Funeral) | F130: 7054.04 | G130: 7054.04
E131: =SUM(E97:E130) -> 0 | F131: =SUM(F97:F130) -> 3618118.45 | G131: =SUM(G97:G130) -> 3618118.45
A135: SINISTROS GENTE 2024 (JANEIRO A DEZEMBRO)
A137: Quantidade | B137: Mês do Sinistro | C137: Data da Ocorrência | D137: Situação Morte/Invalidez | E137: Sinistro Pendentes | F137: Sinistro Pagos | G137: Total | H137: Status
A138: 1 | B138: FEVEREIRO | C138: 2024-02-05 | D138: Morte Natural | F138: 117988.5 | G138: =E138+F138 -> 117988.5 | H138: Processo concluído
D139: Morte Natural (Assistência/Auxílio Funeral) | G139: Não requereu
A140: 2 | B140: FEVEREIRO | C140: 2024-02-08 | D140: Morte Natural | F140: 117988.5 | G140: =E140+F140 -> 117988.5 | H140: Processo concluído
D141: Morte Natural (Assistência/Auxílio Funeral) | F141: 2200 | G141: =E141+F141 -> 2200
A142: 3 | B142: MARÇO | C142: 2024-02-28 | D142: Morte Natural | F142: 255409 | G142: =E142+F142 -> 255409 | H142: Processo concluído
D143: Morte Natural (Assistência/Auxílio Funeral) | F143: 5020 | G143: =E143+F143 -> 5020
A144: 4 | B144: ABRIL | C144: 2022-06-29 | D144: Invalidez Funcional Permanente por Doença | F144: 0 | G144: =E144+F144 -> 0 | H144: Processo concluído - INDEFERIDO
A146: 5 | B146: ABRIL | C146: 2024-04-11 | D146: Morte Natural | F146: 255409 | G146: =E146+F146 -> 255409 | H146: Processo concluído
D147: Morte Natural (Assistência/Auxílio Funeral) | F147: 5700 | G147: =E147+F147 -> 5700
A148: 6 | B148: ABRIL | C148: 2024-04-28 | D148: Morte Natural | F148: 255409 | G148: =F148+E148 -> 255409 | H148: Processo concluído
D149: Morte Natural (Assistência/Auxílio Funeral) | F149: 6356 | G149: =E149+F149 -> 6356
A150: 7 | B150: MAIO | C150: 2024-05-07 | D150: Morte Acidental | F150: =2*117988.5 -> 235977 | G150: =E150+F150 -> 235977 | H150: Processo concluído
D151: Morte Acidental (Assistência/Auxílio Funeral) | F151: 1000 | G151: =E151+F151 -> 1000
A152: 8 | B152: MAIO | C152: 2024-05-07 | D152: Morte Natural | F152: 255409 | G152: 255409 | H152: Processo concluído
D153: Morte Natural (Assistência/Auxílio Funeral) | F153: 4500 | G153: 4500
A154: 9 | B154: MAIO | C154: 2024-05-21 | D154: Morte Natural | F154: 117988.5 | G154: 117988.5 | H154: Processo concluído
D155: Morte Natural (Assistência/Auxílio Funeral) | F155: 5626.31 | G155: 5626.31
A156: 10 | B156: MAIO | C156: 2024-05-30 | D156: Morte Natural | F156: 255409 | G156: 255409 | H156: Processo concluído
D157: Morte Natural (Assistência/Auxílio Funeral) | F157: 5380 | G157: 5380
A158: 11 | B158: MAIO | C158: 2024-05-30 | D158: Morte Acidental | E158: 255409 | F158: 255409 | G158: =F158 -> 255409 | H158: Processo PENDENTE para morte acidental - NÃO apresentaram documentação
D159: Morte Acidental (Assistência/Auxílio Funeral) | F159: 1852 | G159: 1852
A160: 12 | B160: JUNHO | C160: 2023-06-14 | D160: Invalidez Funcional Permanente por Doença | F160: 0 | G160: 0
A162: 13 | B162: JUNHO | C162: 2024-06-15 | D162: Morte Natural | F162: 255409 | G162: 255409 | H162: Processo concluído
D163: Morte Natural (Assistência/Auxílio Funeral) | F163: 7297.4 | G163: 7297.4
A164: 14 | B164: SETEMBRO | C164: 2024-09-07 | D164: Morte Acidental | F164: =2*117988.5 -> 235977 | G164: 235977 | H164: Processo concluído
D165: Morte Acidental (Assistência/Auxílio Funeral) | F165: 3300 | G165: 3300
A166: 15 | B166: SETEMBRO | C166: 2024-09-09 | D166: Invalidez Funcional Permanente por Doença | F166: 0 | G166: 0 | H166: Processo concluído - INDEFERIDO
A168: 16 | B168: SETEMBRO | C168: 2024-09-17 | D168: Morte Natural | F168: 255409 | G168: =E168+F168 -> 255409 | H168: Processo concluído
D169: Morte Natural (Assistência/Auxílio Funeral) | F169: 5700 | G169: 5700
A170: 17 | B170: SETEMBRO | C170: 2024-09-24 | D170: Invalidez Funcional Permanente por Doença | F170: 0 | G170: 0 | H170: Processo concluído - INDEFERIDO
F171: 0 | G171: 0
A172: 18 | B172: OUTUBRO | C172: 2024-10-08 | D172: Invalidez Funcional Permanente por Doença | F172: 117988.5 | G172: =F172 -> 117988.5 | H172: Processo concluído
F173: 0
A174: 19 | B174: NOVEMBRO | C174: 2024-11-11 | D174: Morte Natural | F174: 117988.5 | G174: 117988.5 | H174: Processo concluído
D175: Morte Natural (Assistência/Auxílio Funeral) | F175: 3545 | G175: 3545
A176: 20 | B176: NOVEMBRO | C176: 2024-11-18 | D176: Morte Natural | F176: 255409 | G176: 255409 | H176: Processo concluído
D177: Morte Natural (Assistência/Auxílio Funeral) | F177: 7297.4 | G177: 7297.4
A178: 21 | B178: NOVEMBRO | C178: 2024-11-24 | D178: Morte Natural | E178: 117988.5 | H178: Processo pendente - aguardando documentação
D179: Morte Natural (Assistência/Auxílio Funeral) | E179: 7297.4
A180: 22 | B180: DEZEMBRO | C180: 2024-12-07 | D180: Morte Natural | F180: 117988.5 | G180: 117988.5 | H180: Processo concluído
D181: Morte Natural (Assistência/Auxílio Funeral) | F181: 5820 | G181: 5820
A182: 23 | B182: DEZEMBRO | C182: 2023-12-18 | D182: Invalidez Funcional Permanente por Doença | F182: 246891.4 | G182: 246891.4 | H182: Processo concluído
A184: 24 | B184: DEZEMBRO | C184: 2024-12-19 | D184: Morte Natural | F184: 255409 | G184: =F184+E184 -> 255409 | H184: Processo concluído
D185: Morte Natural (Assistência/Auxílio Funeral) | F185: 7297.4 | G185: =F185+E185 -> 7297.4
A186: 25 | B186: DEZEMBRO | C186: 2024-12-22 | D186: Morte Natural | F186: 117988.5 | G186: =E186+F186 -> 117988.5 | H186: Processo concluído
D187: Morte Natural (Assistência/Auxílio Funeral) | F187: 690 | G187: =E187+F187 -> 690
A188: 26 | B188: DEZEMBRO | C188: 2024-12-23 | D188: Morte Natural | F188: 255409 | G188: =E188+F188 -> 255409 | H188: Processo concluído
D189: Morte Natural (Assistência/Auxílio Funeral) | F189: 3700 | G189: =E189+F189 -> 3700
E190: =SUM(E138:E189) -> 380694.9 | F190: =SUM(F138:F189) -> 4436545.41 | G190: =SUM(G138:G189)+E190 -> 4817240.31
A194: SINISTROS GENTE 2025 (JANEIRO A DEZEMBRO)
A196: Quantidade | B196: Mês do Sinistro | C196: Data da Ocorrência | D196: Situação Morte/Invalidez | E196: Sinistro Pendentes | F196: Sinistro Pagos | G196: Total | H196: Status
A197: 1 | B197: MARÇO | C197: 2025-03-11 | D197: Morte Natural | F197: =42576.68+42576.68+42551.14+127704.5 -> 255409 | G197: =E197+F197 -> 255409 | H197: Processo concluído
D198: Morte Natural (Assistência/Auxílio Funeral) | F198: 3420 | G198: =E198+F198 -> 3420
A199: 2 | B199: ABRIL | C199: 2025-04-22 | D199: Morte Acidental | F199: =11798.25+11798.85+11798.85+11798.85+11798.85+58994.25+117988.5 -> 235976.4 | G199: =F199 -> 235976.4 | H199: Processo concluído
D200: Morte Acidental (Assistência/Auxílio Funeral) | F200: 1000 | G200: =F200 -> 1000
A201: 3 | B201: MAIO | C201: 2025-05-01 | D201: Morte Natural | F201: =68984.3+68984.3+137968.6 -> 275937.2 | G201: =E201+F201 -> 275937.2 | H201: Processo concluído
D202: Morte Natural (Assistência/Auxílio Funeral) | F202: 500 | G202: =E202+F202 -> 500
A203: 4 | B203: MAIO | C203: 2025-05-01 | D203: Morte Natural | F203: =91969.87+91997.46+91969.87 -> 275937.2 | G203: =E203+F203 -> 275937.2 | H203: Processo concluído
D204: Morte Natural (Assistência/Auxílio Funeral) | F204: 7255 | G204: =E204+F204 -> 7255
A205: 5 | B205: JUNHO | C205: 2025-06-13 | D205: Morte Natural | F205: =12747.14+12747.14+12747.14+12747.14+12747.14+63735.7 -> 127471.4 | G205: =F205 -> 127471.4 | H205: Processo concluído
D206: Morte Natural (Assistência/Auxílio Funeral) | F206: 0 | G206: =F206 -> 0
A207: 6 | B207: JUNHO | C207: 2025-06-17 | D207: Invalidez Funcional Permanente por Doença | F207: 0 | G207: =E207+F207 -> 0 | H207: Processo INDEFERIDO - Aguardando manifestação da segurada quanto a solicitação de junta médica
A209: 7 | B209: JUNHO | C209: 2025-06-20 | D209: Morte Natural | F209: =10618.37+10669.36+10618.36+10618.37+10618.37+10618.37+10618.37+10618.36+10618.36+10618.37+10618.37+10618.37 -> 127471.4 | G209: =F209 -> 127471.4 | H209: Processo concluído
D210: Morte Natural (Assistência/Auxílio Funeral) | F210: 2100 | G210: 2100
A211: 8 | B211: AGOSTO | C211: 2025-08-20 | D211: Morte Natural | F211: =21262.22+21249.48+21249.48+21236.74+21236.74+21236.74 -> 127471.4 | G211: 127471.4 | H211: Processo concluído
D212: Morte Natural (Assistência/Auxílio Funeral) | F212: 7000 | G212: 7000
A213: 9 | B213: AGOSTO | C213: 2025-08-26 | D213: Morte Natural | F213: =50988.56+25494.28+25494.28+25494.28 -> 127471.4 | G213: 127471.4 | H213: Processo concluído
D214: Morte Natural (Assistência/Auxílio Funeral) | F214: =3600+1540 -> 5140 | G214: 5140
A215: 10 | B215: SETEMBRO | C215: 2025-09-11 | D215: Morte Natural | F215: =19709.8+19709.8+19709.8+19709.8+19709.8+19709.8+19709.8+137968.6 -> 275937.2 | G215: 275937.2 | H215: Processo concluído
D216: Morte Natural (Assistência/Auxílio Funeral) | F216: 7883.92 | G216: 7883.92
A217: 11 | B217: SETEMBRO | C217: 2025-09-21 | D217: Morte Natural | F217: =23900.88+23900.89+23900.89+23900.89+31867.85 -> 127471.4 | G217: =E217+F217 -> 127471.4 | H217: Processo concluído
D218: Morte Natural (Assistência/Auxílio Funeral) | F218: 6824 | G218: =E218+F218 -> 6824
A219: 12 | B219: SETEMBRO | C219: 2022-11-10 | D219: Invalidez Funcional Permanente por Doença | F219: 0 | G219: =E219+F219 -> 0 | H219: Processo concluído - INDEFERIDO
A221: 13 | B221: NOVEMBRO | C221: 2025-11-08 | D221: Morte Natural | F221: 127471.4 | G221: =E221+F221 -> 127471.4 | H221: Processo concluído
D222: Morte Natural (Assistência/Auxílio Funeral) | F222: 7883.92 | G222: 7883.92
A223: 14 | B223: NOVEMBRO | C223: 2025-11-21 | D223: Morte Natural | F223: 275937.2 | G223: 275937.2 | H223: Processo concluído
D224: Morte Natural (Assistência/Auxílio Funeral) | F224: 7883.92 | G224: 7883.92
A225: 15 | B225: DEZEMBRO | C225: 2025-12-23 | D225: Morte Natural | E225: 275937.2 | H225: Processo em análise - AGUARDANDO CONFIRMAÇÃO DE PAGAMENTO
D226: Morte Natural (Assistência/Auxílio Funeral) | F226: 750 | G226: 750
E227: =SUM(E197:E226) -> 275937.2 | F227: =SUM(F197:F226) -> 2417603.36 | G227: =SUM(G197:G226) -> 2417603.36
A230: SINISTROS GENTE 2026 (JANEIRO)
A232: Quantidade | B232: Mês do Sinistro | C232: Data da Ocorrência | D232: Situação Morte/Invalidez | E232: Sinistro Pendentes | F232: Sinistro Pagos | G232: Total | H232: Status
A233: 1 | B233: JANEIRO | C233: 2026-01-07 | D233: Morte Natural | F233: 275937.2 | G233: =F233 -> 275937.2 | H233: Processo em análise - AGUARDANDO CONFIRMAÇÃO DE PAGAMENTO
D234: Morte Natural (Assistência/Auxílio Funeral) | E234: 6600
E235: =SUM(E233:E234) -> 6600 | F235: =SUM(F233:F234) -> 275937.2 | G235: =SUM(G233:G234) -> 275937.2
